bitfinex/quotes_SOLUSD_20260125
["timestamp","ask_amount","ask_price","bid_price","bid_amount"]
[1769330650435,4.06733434,126.39,126.36,2.14737163]
[1769330651329,4.06733434,126.39,126.35,2.14737163]
[1769330652444,4.06733434,126.39,126.36,3.85731989]
[1769330655639,5.58435072,126.4,126.37,4.10926009]
[1769330658547,4.13635889,126.39,126.37,4.10926009]
[1769330659624,5.58435072,126.4,126.37,4.10926009]
[1769330661043,5.58435072,126.4,126.37,6.25663172]
[1769330661327,5.58435072,126.4,126.38,2.2e-07]
[1769330661328,1.44799183,126.4,126.38,2.2e-07]
[1769330661727,5.58435072,126.4,126.38,2.2e-07]
[1769330662139,4.13635889,126.41,126.38,3.07e-06]
[1769330663835,4.13635889,126.41,126.36,7.91386381]
[1769330664031,4.13635889,126.41,126.38,2.14737163]
[1769330664239,4.13635889,126.41,126.36,7.91386381]
[1769330664462,4.13635889,126.41,126.38,2.14737163]
[1769330666234,4.13635889,126.41,126.38,2.36722035]
[1769330667144,4.13635889,126.41,126.38,2.14737555]
[1769330667353,4.13635889,126.41,126.38,0.1173533]
[1769330667544,4.13635889,126.41,126.38,2.85e-06]
[1769330667960,4.13635889,126.41,126.37,2.14737163]
[1769330669358,4.13635889,126.41,126.37,2.20405256]
[1769330669551,4.13635889,126.41,126.37,2.14737163]
[1769330669752,4.13635889,126.41,126.37,0.17532827]
[1769330671262,4.13635889,126.41,126.35,7.91372123]
[1769330671464,4.13635889,126.41,126.38,2.14737163]
[1769330671836,4.13635889,126.41,126.38,2.18469549]
[1769330672764,4.13635889,126.41,126.38,2.14737163]
[1769330674566,4.13635889,126.41,126.38,2.21973235]
[1769330676368,4.13635889,126.41,126.38,0.01898664]
[1769330676670,4.13635889,126.41,126.38,2.16635827]
[1769330676864,4.13635889,126.41,126.35,7.91372123]
[1769330677175,4.13635889,126.41,126.38,2.14737163]
[1769330677344,4.13635889,126.41,126.35,7.91372123]
[1769330677662,4.13635889,126.41,126.38,2.14737163]
[1769330678868,4.13635889,126.41,126.38,2.21690015]
[1769330679066,4.13635889,126.41,126.38,2.14737163]
[1769330680969,4.13635889,126.41,126.38,2.19798984]
[1769330681268,4.13635889,126.41,126.38,2.14737163]
[1769330681454,4.13635889,126.41,126.38,1.7202668]
[1769330683253,5.93525466,126.42,126.39,0.03318991]
[1769330683454,5.93525466,126.42,126.38,1.7202668]
[1769330683750,4.40385778,126.41,126.38,1.7202668]
[1769330683952,4.40385778,126.41,126.38,2.14737163]
[1769330684371,4.40385778,126.41,126.36,7.91346353]
[1769330684551,4.40385778,126.41,126.38,2.14737163]
[1769330686866,4.40385778,126.41,126.38,2.14480602]
[1769330687976,4.40385778,126.4,126.36,2.14480602]
[1769330688276,4.40385778,126.39,126.35,2.22494522]
[1769330688574,6.5486638,126.39,126.34,2.22494522]
[1769330688778,4.40385778,126.38,126.35,2.14480602]
[1769330689078,4.40385778,126.38,126.35,2.22494522]
[1769330700292,4.40385778,126.38,126.34,0.19228443]
[1769330700469,4.40385778,126.38,126.35,2.14480602]
[1769330700872,4.40385778,126.37,126.33,2.33709045]
[1769330701205,4.40385778,126.36,126.32,2.33709045]
[1769330701577,4.40385778,126.36,126.33,0.19228443]
[1769330701802,8.0,126.35,126.33,0.19228443]
[1769330704277,12.4064396,126.35,126.32,2.33709045]
[1769330705795,12.4064396,126.35,126.32,0.19228443]
[1769330706697,4.4064396,126.34,126.31,2.14480602]
[1769330706892,4.4064396,126.34,126.31,2.33709045]
[1769330708106,4.4064396,126.34,126.31,2.14480602]
[1769330708597,4.4064396,126.34,126.31,2.33709045]
[1769330708812,4.4064396,126.34,126.26,19.7994836]
[1769330709106,4.4064396,126.33,126.28,2.33709045]
[1769330709506,4.4064396,126.32,126.28,2.33709045]
[1769330711011,4.4064396,126.32,126.29,2.14480602]
[1769330711411,4.4064396,126.3,126.26,0.19228443]
[1769330711587,4.4064396,126.3,126.27,2.33709045]
[1769330711792,8.0,126.31,126.29,2.33709045]
[1769330712306,4.4064396,126.33,126.3,2.33709045]
[1769330712893,4.4064396,126.33,126.3,2.14480602]
[1769330713093,4.4064396,126.33,126.29,2.33709045]
[1769330713699,4.4064396,126.33,126.3,2.14480602]
[1769330714104,4.4064396,126.33,126.29,2.33709045]
[1769330714303,4.4064396,126.33,126.27,0.19228443]
[1769330714595,2.14480602,126.33,126.28,2.33709045]
[1769330714805,4.45683857,126.32,126.28,2.33709045]
[1769330715211,4.45683857,126.32,126.27,0.19228443]
[1769330715408,4.45683857,126.31,126.25,0.2]
[1769330715607,4.45683857,126.26,126.25,0.2]
[1769330715914,4.45683857,126.26,126.23,2.14480602]
[1769330716513,4.45683857,126.26,126.22,2.53709045]
[1769330717415,4.45683857,126.26,126.23,2.14480602]
[1769330719916,4.45683857,126.26,126.21,7.923025]
[1769330719917,4.45683857,126.26,126.21,0.39228443]
[1769330720092,4.45683857,126.26,126.22,2.53709045]
[1769330720294,4.45683857,126.27,126.24,2.14480602]
[1769330721022,4.45683857,126.27,126.23,0.39228443]
[1769330721209,4.45683857,126.27,126.24,2.14480602]
[1769330722620,4.45683857,126.27,126.23,0.39228443]
[1769330723125,4.45683857,126.27,126.23,2.53709045]
[1769330724614,4.45683857,126.27,126.24,2.53709045]
[1769330724816,2.14480602,126.29,126.23,7.9220039]
[1769330724817,4.45683857,126.29,126.25,2.53709045]
[1769330725124,4.45683857,126.29,126.26,2.14480602]
[1769330725329,4.45683857,126.29,126.25,2.53709045]
[1769330725731,4.45683857,126.29,126.24,0.39228443]
[1769330726033,4.45683857,126.29,126.25,2.53709045]
[1769330726321,4.45683857,126.29,126.26,2.14480602]
[1769330726527,4.45683857,126.31,126.27,2.53709045]
[1769330726741,4.45683857,126.31,126.28,2.53709045]
[1769330726912,4.45683857,126.31,126.29,2.14480602]
[1769330727100,4.45683857,126.31,126.28,2.14480602]
[1769330727299,4.45683857,126.31,126.27,2.53709045]
[1769330727946,4.45683857,126.3,126.26,2.14480602]
[1769330730524,12.45683857,126.29,126.26,2.14480602]
[1769330731222,12.45683857,126.29,126.26,2.53709045]
[1769330731526,8.0,126.29,126.27,0.39228443]
[1769330731727,8.0,126.29,126.27,2.53709045]
[1769330732435,8.0,126.29,126.27,2.14480602]
[1769330734925,4.3235981,126.28,126.25,2.53709045]
[1769330735633,4.3235981,126.28,126.24,2.14480602]
[1769330737345,4.3235981,126.28,126.23,8.31414507]
[1769330737525,4.3235981,126.28,126.24,2.14480602]
[1769330738031,4.3235981,126.28,126.25,2.14480602]
[1769330739058,4.3235981,126.28,126.24,2.53709045]
[1769330739750,4.3235981,126.28,126.25,2.14480602]
[1769330741153,4.3235981,126.26,126.21,0.39228443]
[1769330741320,4.3235981,126.26,126.23,2.14480602]
[1769330744924,4.3235981,126.26,126.22,2.14480602]
[1769330745318,4.3235981,126.25,126.2,0.39228443]
[1769330745622,4.3235981,126.24,126.19,2.53709045]
[1769330746224,4.3235981,126.23,126.19,2.53709045]
[1769330747122,4.3235981,126.23,126.19,2.54333858]
[1769330747323,4.3235981,126.23,126.18,8.5172492]
[1769330747548,4.3235981,126.22,126.18,2.74333858]
[1769330747923,4.3235981,126.22,126.19,2.15105415]
[1769330750049,4.3235981,126.22,126.2,2.15105415]
[1769330751431,4.3235981,126.22,126.19,10.46788005]
[1769330752251,4.3235981,126.22,126.19,2.54333858]
[1769330752450,13.77158993,126.25,126.22,0.39228443]
[1769330752664,4.3235981,126.25,126.23,2.15105415]
[1769330754865,4.3235981,126.26,126.24,2.15105415]
[1769330755064,4.3235981,126.26,126.23,2.15105415]
[1769330755367,8.0,126.25,126.23,2.15105415]
[1769330757040,12.3235981,126.25,126.23,2.15105415]
[1769330760356,8.0,126.25,126.24,2.15105415]
[1769330760560,4.3235981,126.26,126.24,2.15105415]
[1769330761575,4.3235981,126.28,126.24,2.15105415]
[1769330763467,4.3235981,126.28,126.25,2.15105415]
[1769330764968,4.3235981,126.28,126.24,2.15105415]
[1769330767477,4.3235981,126.28,126.25,2.15105415]
[1769330772185,4.3235981,126.28,126.24,2.15105415]
[1769330781294,4.3235981,126.28,126.23,2.15105415]
[1769330781503,4.3235981,126.28,126.24,2.15105415]
[1769330783190,4.3235981,126.28,126.25,2.15105415]
[1769330786507,4.3235981,126.28,126.25,2.54333858]
[1769330787305,4.3235981,126.28,126.25,2.15105415]
[1769330787686,4.3235981,126.28,126.25,2.54333858]
[1769330789417,5.75184961,126.29,126.26,2.54333858]
[1769330790384,4.30385778,126.28,126.26,2.15105415]
[1769330790699,5.75184961,126.29,126.26,2.15105415]
[1769330791302,5.75184961,126.29,126.27,2.15105415]
[1769330791493,5.75184961,126.29,126.26,2.15105415]
[1769330794595,1.44799183,126.29,126.27,2.54333858]
[1769330794916,4.30385778,126.3,126.28,2.15105415]
[1769330795892,4.30385778,126.3,126.27,2.15105415]
[1769330796109,4.30385778,126.3,126.26,0.39228443]
[1769330796110,4.30385778,126.3,126.26,2.54333858]
[1769330796815,4.30385778,126.3,126.26,2.15105415]
[1769330797688,4.30385778,126.3,126.25,0.39228443]
[1769330797689,2.15105415,126.3,126.23,0.39228443]
[1769330797893,4.30385778,126.28,126.24,2.15105415]
[1769330799215,4.30385778,126.28,126.24,2.54333858]
[1769330800118,4.30385778,126.28,126.24,2.15105415]
[1769330801517,4.30385778,126.27,126.22,0.39228443]
[1769330801706,4.30385778,126.27,126.22,2.54333858]
[1769330802998,4.30385778,126.26,126.22,2.15105415]
[1769330803312,4.30385778,126.23,126.19,0.39228443]
[1769330803515,4.30385778,126.23,126.19,2.54333858]
[1769330804512,4.30385778,126.23,126.19,2.15105415]
[1769330804709,4.30385778,126.22,126.18,2.35105415]
[1769330804912,4.30385778,126.21,126.18,0.2]
[1769330805709,4.20385778,126.19,126.17,0.2]
[1769330812104,4.20385778,126.19,126.17,2.3522217]
[1769330812720,4.20385778,126.19,126.17,0.2]
[1769330812920,4.20385778,126.19,126.17,2.3522217]
[1769330815129,4.20385778,126.19,126.17,0.2]
[1769330815429,4.20385778,126.19,126.17,2.3522217]
[1769330815623,4.20385778,126.19,126.17,0.2]
[1769330816203,4.20385778,126.19,126.17,2.3522217]
[1769330816409,4.20385778,126.21,126.17,2.94450613]
[1769330816720,4.20385778,126.21,126.17,2.3522217]
[1769330816925,4.20385778,126.2,126.17,0.2]
[1769330822737,4.20385778,126.2,126.17,2.94450613]
[1769330826235,4.20385778,126.2,126.18,2.1522217]
[1769330826432,5.85531337,126.21,126.18,2.1522217]
[1769330826817,5.85531337,126.21,126.18,2.74450613]
[1769330828141,1.44799183,126.21,126.18,2.1522217]
[1769330828348,5.85531337,126.21,126.18,2.1522217]
[1769330829048,5.85531337,126.21,126.18,2.74450613]
[1769330830734,5.85531337,126.21,126.18,0.59228443]
[1769330830928,5.85531337,126.21,126.18,2.74450613]
[1769330834933,4.23612348,126.2,126.18,2.1522217]
[1769330835927,53.71810417,126.24,126.18,2.1522217]
[1769330835928,4.23612348,126.23,126.19,2.1522217]
[1769330836524,4.23612348,126.22,126.18,2.74450613]
[1769330838248,4.23612348,126.22,126.18,0.59228443]
[1769330838435,49.97510337,126.24,126.17,0.2]
[1769330838436,4.23612348,126.19,126.17,0.2]
[1769330839650,4.23612348,126.19,126.16,0.2]
[1769330839651,4.23612348,126.18,126.16,0.2]
[1769330842857,4.23612348,126.17,126.12,0.2]
[1769330843153,4.23612348,126.16,126.12,0.2]
[1769330843940,4.23612348,126.15,126.12,0.2]
[1769330845354,4.23612348,126.14,126.12,0.2]
[1769330845665,4.23612348,126.13,126.1,0.2]
[1769330846649,4.23612348,126.13,126.1,2.3522217]
[1769330846845,4.23612348,126.15,126.12,2.1522217]
[1769330847067,4.23612348,126.15,126.1,3.74450613]
[1769330847250,4.23612348,126.14,126.1,2.3522217]
[1769330847445,2.1522217,126.14,126.1,0.2]
[1769330847650,4.23612348,126.13,126.1,0.2]
[1769330847853,4.23612348,126.13,126.1,2.3522217]
[1769330848459,4.23612348,126.13,126.09,3.54450613]
[1769330848664,4.23612348,126.13,126.09,2.1522217]
[1769330848965,4.23612348,126.13,126.08,1.39228443]
[1769330849161,4.23612348,126.13,126.09,2.1522217]
[1769330850346,4.23612348,126.13,126.09,3.54450613]
[1769330850742,4.23612348,126.13,126.09,2.1522217]
[1769330850942,4.23612348,126.13,126.08,1.39228443]
[1769330851157,4.23612348,126.13,126.08,2.1522217]
[1769330851462,4.23612348,126.09,126.07,10.0]
[1769330851647,4.23612348,126.09,126.07,1.0]
[1769330852155,5.34408856,126.03,125.96,25.86868005]
[1769330852337,4.15182461,125.98,125.96,25.86868005]
[1769330852542,4.15182461,125.99,125.96,35.95992184]
[1769330852753,4.15182461,126.01,125.97,2.1522217]
[1769330852964,4.15182461,126.01,125.96,26.04164936]
[1769330853142,4.15182461,126.01,125.98,2.1522217]
[1769330853338,4.15182461,126.05,126.0,6.52074904]
[1769330853557,4.15182461,126.06,126.03,2.1522217]
[1769330853761,4.15182461,126.06,126.02,6.52074904]
[1769330853962,4.15182461,126.1,126.04,2.1522217]
[1769330854155,4.15182461,126.09,126.03,4.36852734]
[1769330854460,4.15182461,126.09,126.04,4.36852734]
[1769330854660,4.15182461,126.09,126.04,6.52074904]
[1769330854868,4.15182461,126.09,126.04,4.36852734]
[1769330854869,6.30404631,126.09,126.04,4.36852734]
[1769330855047,4.15182461,126.08,126.04,4.36852734]
[1769330855441,4.15182461,126.08,126.03,2.1522217]
[1769330855442,6.30404631,126.08,126.03,4.36852734]
[1769330855663,6.30404631,126.06,126.01,4.36852734]
[1769330855839,2.1522217,126.05,126.01,4.36852734]
[1769330856246,6.30404631,126.05,126.01,4.36852734]
[1769330856945,4.15182461,126.05,126.01,4.36852734]
[1769330857843,9.49591317,126.08,126.03,4.36852734]
[1769330858050,4.44909377,126.1,126.05,2.1522217]
[1769330858267,4.44909377,126.1,126.06,2.1522217]
[1769330858472,4.44909377,126.1,126.05,2.1522217]
[1769330859269,4.44909377,126.1,126.06,2.1522217]
[1769330859448,2.1522217,126.12,126.07,2.1522217]
[1769330859449,4.44909377,126.12,126.07,2.1522217]
[1769330859965,4.44909377,126.12,126.09,2.1522217]
[1769330860372,4.44909377,126.14,126.1,6.52074904]
[1769330860553,4.44909377,126.16,126.12,2.1522217]
[1769330860749,4.44909377,126.16,126.12,6.52074904]
[1769330861071,4.44909377,126.19,126.1,4.36852734]
[1769330861269,4.44909377,126.19,126.06,19.83091275]
[1769330861273,5.49156684,126.18,126.13,5.49156684]
[1769330861450,4.44909377,126.18,126.13,9.86009418]
[1769330861649,4.44909377,126.18,126.14,9.86009418]
[1769330862090,4.44909377,126.2,126.15,9.86009418]
[1769330862271,4.44909377,126.2,126.16,9.86009418]
[1769330862650,4.44909377,126.2,126.16,4.36852734]
[1769330862856,4.44909377,126.2,126.16,9.86009418]
[1769330863169,9.94066061,126.2,126.15,4.36852734]
[1769330863347,9.94066061,126.19,126.13,4.36852734]
[1769330863554,5.49156684,126.18,126.13,4.36852734]
[1769330864272,9.94066061,126.19,126.13,9.86009418]
[1769330864456,9.94066061,126.19,126.14,4.36852734]
[1769330866568,5.49156684,126.18,126.14,4.36852734]
[1769330866877,9.94066061,126.19,126.14,4.36852734]
[1769330867448,5.49156684,126.18,126.14,4.36852734]
[1769330867652,5.49156684,126.17,126.14,4.36852734]
[1769330868362,9.94066061,126.18,126.14,4.36852734]
[1769330868764,5.49156684,126.19,126.14,4.36852734]
[1769330868963,9.94066061,126.2,126.14,4.36852734]
[1769330869174,9.94066061,126.2,126.15,4.36852734]
[1769330869982,4.44909377,126.2,126.15,4.36852734]
[1769330870279,9.94066061,126.2,126.15,4.36852734]
[1769330870859,5.49011313,126.21,126.15,4.36852734]
[1769330871060,5.49011313,126.21,126.16,4.36852734]
[1769330871261,9.9392069,126.22,126.16,4.36852734]
[1769330871485,9.9392069,126.22,126.17,4.36852734]
[1769330871893,4.44909377,126.21,126.17,4.36852734]
[1769330872052,5.49011313,126.18,126.14,4.36852734]
[1769330872557,9.9392069,126.19,126.14,4.36852734]
[1769330873566,4.44909377,126.19,126.14,4.36852734]
[1769330873763,33.07355713,126.22,126.15,4.36852734]
[1769330873764,5.49011313,126.2,126.15,4.36852734]
[1769330874172,9.9392069,126.2,126.15,4.36852734]
[1769330877063,5.49011313,126.21,126.16,4.36852734]
[1769330877466,4.44909377,126.2,126.16,4.36852734]
[1769330877672,9.9392069,126.2,126.16,4.36852734]
[1769330877969,4.44909377,126.2,126.16,4.36852734]
[1769330878564,9.9392069,126.21,126.16,4.36852734]
[1769330880486,5.49011313,126.2,126.16,4.36852734]
[1769330880671,9.9392069,126.21,126.16,4.36852734]
[1769330882270,11.38719873,126.21,126.16,4.36852734]
[1769330882774,4.44909377,126.2,126.16,4.36852734]
[1769330883081,6.6011634,126.2,126.16,4.36852734]
[1769330883265,4.44909377,126.2,126.16,4.36852734]
[1769330883666,6.6011634,126.2,126.16,4.36852734]
[1769330884457,9.37139534,126.21,126.13,4.46746957]
[1769330884458,4.11322922,126.17,126.13,4.46746957]
[1769330884661,6.26529885,126.17,126.13,4.46746957]
[1769330884875,6.26529885,126.18,126.13,4.46746957]
[1769330885075,7.92444165,126.2,126.15,4.46746957]
[1769330885076,6.26529885,126.2,126.15,4.46746957]
[1769330885286,4.11322922,126.2,126.15,4.46746957]
[1769330887468,6.26529885,126.2,126.15,4.46746957]
[1769330889575,7.71329068,126.2,126.15,4.46746957]
[1769330889971,5.56122105,126.2,126.15,4.46746957]
[1769330890292,6.26529885,126.19,126.15,4.46746957]
[1769330890592,4.11322922,126.19,126.15,4.46746957]
[1769330891395,6.26529885,126.19,126.15,4.46746957]
[1769330892080,2.15206963,126.19,126.15,4.46746957]
[1769330892969,4.7,126.18,126.15,4.46746957]
[1769330895684,4.7,126.18,126.15,12.39447239]
[1769330895990,4.7,126.18,126.16,4.40955341]
[1769330899587,11.21614699,126.18,126.15,4.40955341]
[1769330899774,6.85206963,126.18,126.15,4.40955341]
[1769330903495,4.7,126.18,126.15,4.40955341]
[1769330912108,4.7,126.18,126.16,4.40955341]
[1769330912710,4.36407736,126.22,126.17,4.40955341]
[1769330913690,4.19748517,126.21,126.17,4.40955341]
[1769330916993,4.19748517,126.22,126.17,4.40955341]
[1769330918697,6.3495548,126.22,126.17,4.40955341]
[1769330919016,6.3495548,126.22,126.18,4.05704398]
[1769330919415,4.19748517,126.22,126.18,4.05704398]
[1769330921719,6.3495548,126.22,126.18,4.05704398]
[1769330921895,4.19748517,126.21,126.18,4.05704398]
[1769330926826,6.3495548,126.21,126.18,4.05704398]
[1769330928002,4.19748517,126.21,126.18,4.05704398]
[1769330929222,4.19748517,126.22,126.18,4.05704398]
[1769330929538,4.19748517,126.21,126.18,4.05704398]
[1769330933107,2.4,126.2,126.18,4.05704398]
[1769330933333,6.59748517,126.2,126.17,4.05704398]
[1769330933635,6.59748517,126.2,126.16,4.05704398]
[1769330935714,8.74904972,126.2,126.16,4.05704398]
[1769330937517,2.4,126.2,126.17,4.05704398]
[1769330937727,6.59748517,126.2,126.17,4.05704398]
[1769330941144,2.4,126.2,126.18,4.05704398]
[1769330944726,4.40097123,126.23,126.19,4.21253519]
[1769330945043,4.40097123,126.23,126.2,4.21253519]
[1769330945419,4.40097123,126.23,126.18,7.92492424]
[1769330945618,4.40097123,126.23,126.19,4.21253519]
[1769330945819,4.40097123,126.23,126.2,4.21253519]
[1769330948544,0.1,126.23,126.21,4.21253519]
[1769330950528,4.40097123,126.23,126.21,4.21253519]
[1769330952346,0.1,126.23,126.21,4.21253519]
[1769330953141,4.30097123,126.26,126.22,4.21253519]
[1769330954145,4.30097123,126.26,126.23,4.176372]
[1769330954448,4.09902309,126.28,126.24,4.176372]
[1769330956139,4.09902309,126.25,126.22,4.176372]
[1769330956751,4.09902309,126.23,126.2,4.176372]
[1769330961252,4.09902309,126.24,126.2,4.176372]
[1769330961553,4.09902309,126.24,126.21,4.176372]
[1769330962849,4.09902309,126.24,126.2,4.176372]
[1769330963049,4.09902309,126.22,126.18,4.176372]
[1769330965362,4.09902309,126.22,126.18,12.10146027]
[1769330966358,4.09902309,126.22,126.18,4.176372]
[1769330966559,4.09902309,126.21,126.18,4.176372]
[1769330967139,4.09902309,126.21,126.16,6.32793655]
[1769330967338,4.09902309,126.2,126.16,4.176372]
[1769330969269,4.09902309,126.19,126.16,4.176372]
[1769330970557,6.25058764,126.2,126.16,4.176372]
[1769330971272,4.09902309,126.2,126.16,4.176372]
[1769330972658,4.09902309,126.19,126.16,4.176372]
[1769330975284,4.09902309,126.19,126.16,12.10278843]
[1769330975679,4.09902309,126.19,126.16,4.176372]
[1769330979187,4.09902309,126.19,126.16,12.10268044]
[1769330979879,4.09902309,126.19,126.16,7.92630844]
[1769330980086,4.09902309,126.19,126.17,4.45783025]
[1769330980487,4.1148812,126.2,126.17,4.45783025]
[1769330987198,4.1148812,126.19,126.17,4.45783025]
[1769330994000,4.1148812,126.21,126.18,4.45783025]
[1769330996800,4.1148812,126.21,126.17,4.45783025]
[1769331000311,6.26683658,126.21,126.17,12.38362909]
[1769331000503,4.1148812,126.2,126.17,12.38362909]
[1769331000711,4.1148812,126.2,126.17,4.45783025]
[1769331000999,4.1148812,126.18,126.15,12.38470358]
[1769331001592,4.1148812,126.18,126.16,4.45783025]
[1769331001792,6.26683658,126.19,126.16,4.45783025]
[1769331001994,4.1148812,126.19,126.16,4.45783025]
[1769331003808,4.1148812,126.19,126.17,4.20679268]
[1769331005414,4.1148812,126.19,126.16,12.13314103]
[1769331007712,4.4554682,126.21,126.17,4.20679268]
[1769331010118,4.4554682,126.21,126.17,12.13239506]
[1769331010321,4.4554682,126.21,126.18,4.20679268]
[1769331012423,32.15195538,126.23,126.2,4.20679268]
[1769331012424,34.4554682,126.23,126.2,4.20679268]
[1769331015716,30.0,126.23,126.21,4.41958022]
[1769331016226,30.0,126.23,126.21,6.5715356]
[1769331018124,24.15543022,126.23,126.22,4.41958022]
[1769331018316,10.25715833,126.23,126.22,6.5715356]
[1769331018631,4.5,126.26,126.22,6.5715356]
[1769331018827,4.5,126.26,126.24,2.15195538]
[1769331019129,4.5,126.26,126.23,2.15195538]
[1769331024129,4.5,126.26,126.2,7.92393026]
[1769331024319,4.5,126.26,126.21,2.15195538]
[1769331024720,4.5,126.26,126.22,2.15195538]
[1769331025817,4.5,126.26,126.21,2.15195538]
[1769331027247,4.5,126.26,126.2,7.92393026]
[1769331027418,4.5,126.24,126.2,10.07588564]
[1769331028816,4.5,126.24,126.19,10.07621656]
[1769331030536,4.5,126.24,126.2,2.15195538]
[1769331033828,4.5,126.24,126.21,2.15195538]
[1769331034419,4.5,126.25,126.21,2.15195538]
[1769331034620,4.5,126.25,126.2,10.07570401]
[1769331034937,4.5,126.25,126.21,2.15195538]
[1769331035343,4.5,126.25,126.23,2.15195538]
[1769331035530,4.5,126.25,126.2,27.7335743]
[1769331035531,4.5,126.25,126.22,2.15195538]
[1769331036042,4.5,126.25,126.21,10.07494035]
[1769331038142,2.15195538,126.27,126.22,4.42048946]
[1769331040224,4.25875348,126.26,126.22,4.42048946]
[1769331049831,4.25875348,126.26,126.22,6.57244484]
[1769331050668,4.25875348,126.26,126.23,4.42048946]
[1769331054665,4.25875348,126.26,126.22,7.92259348]
[1769331054833,4.25875348,126.26,126.22,12.34308294]
[1769331055875,4.25875348,126.25,126.21,12.34356324]
[1769331056665,4.25875348,126.25,126.22,4.42048946]
[1769331057771,4.25875348,126.24,126.19,6.57025979]
[1769331057941,4.25875348,126.24,126.2,4.42048946]
[1769331058363,4.25875348,126.24,126.2,12.34438783]
[1769331058770,4.25875348,126.24,126.2,4.42048946]
[1769331059062,4.25875348,126.22,126.17,4.42048946]
[1769331059250,4.25875348,126.21,126.17,12.34613738]
[1769331059451,4.25875348,126.21,126.18,4.42048946]
[1769331064185,4.48415206,126.22,126.19,4.28616367]
[1769331070978,4.48415206,126.22,126.18,4.28616367]
[1769331074778,4.48415206,126.22,126.19,4.43662365]
[1769331074974,4.18205074,126.23,126.2,4.43662365]
[1769331075660,4.18205074,126.24,126.21,6.58639398]
[1769331076269,4.18205074,126.24,126.21,4.43662365]
[1769331076990,4.18205074,126.25,126.22,4.43662365]
[1769331078276,4.18205074,126.25,126.22,6.58639398]
[1769331078479,4.18205074,126.26,126.23,4.43662365]
[1769331079474,4.18205074,126.26,126.22,2.14977033]
[1769331079679,4.18205074,126.26,126.22,6.58639398]
[1769331082693,4.18205074,126.26,126.22,4.43662365]
[1769331083181,4.18205074,126.26,126.22,6.58639398]
[1769331083568,4.18205074,126.25,126.21,12.35968889]
[1769331088892,4.18205074,126.25,126.21,14.50945922]
[1769331090103,4.18205074,126.25,126.21,4.43662365]
[1769331091710,4.18205074,126.21,126.18,12.36153891]
[1769331091998,2.14977033,126.24,126.19,4.43662365]
[1769331092498,7.92050553,126.26,126.19,4.43662365]
[1769331092499,2.14977033,126.23,126.19,4.43662365]
[1769331093895,4.49685254,126.22,126.19,4.43662365]
[1769331094997,4.49685254,126.21,126.19,4.43662365]
[1769331101707,4.49685254,126.22,126.19,4.43662365]
[1769331120237,5.94484437,126.24,126.2,4.36192821]
[1769331120415,4.49685254,126.24,126.2,6.51298417]
[1769331120616,4.49685254,126.25,126.22,4.36192821]
[1769331124307,4.05199979,126.28,126.25,4.07694784]
[1769331124531,4.05199979,126.28,126.25,2.15105596]
[1769331125222,4.05199979,126.28,126.24,2.15105596]
[1769331125430,4.05199979,126.28,126.23,2.15105596]
[1769331125615,4.05199979,126.27,126.22,10.07369365]
[1769331126329,4.05199979,126.27,126.23,2.15105596]
[1769331126529,4.05199979,126.27,126.23,14.15001465]
[1769331127333,4.05199979,126.27,126.24,4.07694784]
[1769331132738,4.05199979,126.28,126.25,6.2280038]
[1769331133034,4.05199979,126.28,126.26,4.07694784]
[1769331134006,4.05199979,126.28,126.25,6.37760939]
[1769331135205,4.05199979,126.28,126.25,4.22655343]
[1769331137014,4.05199979,126.28,126.23,14.29933522]
[1769331137218,4.05199979,126.28,126.24,4.22655343]
[1769331137440,4.05199979,126.28,126.24,12.14797183]
[1769331138327,6.20305575,126.28,126.24,12.14797183]
[1769331138537,4.05199979,126.28,126.25,12.14723565]
[1769331138741,4.45866984,126.29,126.26,4.22655343]
[1769331140113,4.45866984,126.29,126.25,4.22655343]
[1769331140439,4.45866984,126.28,126.25,4.22655343]
[1769331140614,4.45866984,126.28,126.24,4.22655343]
[1769331140819,4.45866984,126.27,126.24,4.22655343]
[1769331141231,4.45866984,126.28,126.25,4.22655343]
[1769331144622,5.90666167,126.3,126.27,4.22655343]
[1769331145838,5.90666167,126.3,126.28,4.22655343]
[1769331146042,4.45866984,126.3,126.27,6.37760939]
[1769331149334,4.55866984,126.31,126.29,2.15105596]
[1769331150251,4.55866984,126.31,126.28,6.37760939]
[1769331153656,4.54483183,126.33,126.3,6.23060003]
[1769331155849,4.54483183,126.33,126.3,14.14815278]
[1769331156749,4.54483183,126.33,126.29,14.14880517]
[1769331157132,4.54483183,126.33,126.3,4.07954407]
[1769331157331,4.54483183,126.33,126.3,6.23060003]
[1769331157836,4.54483183,126.33,126.3,4.07954407]
[1769331161030,0.1,126.33,126.31,4.07954407]
[1769331161663,4.54483183,126.33,126.31,4.07954407]
[1769331161832,4.54483183,126.33,126.3,6.23060003]
[1769331162370,0.1,126.33,126.31,6.23060003]
[1769331162552,4.54483183,126.33,126.31,6.23060003]
[1769331162753,0.1,126.33,126.31,6.23060003]
[1769331162951,0.1,126.33,126.31,2.15105596]
[1769331163140,0.1,126.33,126.31,6.23060003]